Cogmind - Beta 13 @@@ ROGUE MODE // 2024.05.07 @ 01:26:14 Player: HourglassMan Result: Destroyed by as-35486 with Assembled Rifle Performance ------------- Evolutions (1) 500 Regions Visited (3) 600 Robots Destroyed (23) 115 Value Destroyed (653) 653 Prototype IDs (3) 60 Alien Tech Used (0) 0 Bonus (27) 27 TOTAL SCORE: 1955 Bonus ------- High Alert Combat Kills 27 Cogmind --------- Core Integrity 0/400 Matter 221/300 Energy 75/265 System Corruption 2% Temperature Cool (18) Movement Rolling (90) Location -9/Mines Parts ------- > --- POWER (1) -------- Improved Ion Engine > --- PROPULSION (3) --- Wheel Compact Wheel > --- UTILITY (3) ------ Medium Storage Unit > --- WEAPON (2) ------- Particle Gun Light Assault Rifle > --- INVENTORY (10) --- Aluminum Leg Hardened Light Armor Plating EM Pulse Gun Light Assault Rifle Peak State ------------ > --- POWER ------------ Cooled Ion Engine > --- PROPULSION ------- Aluminum Leg Aluminum Leg Improved Aluminum Leg > --- UTILITY ---------- Heat Sink Medium Storage Unit Medium Battery > --- WEAPON ----------- Particle Gun Heavy Assault Rifle > --- INVENTORY -------- Improved Ion Engine Aluminum Leg Wheel Compact Wheel Hardened Light Armor Plating EM Pulse Gun Particle Gun Light Assault Rifle Light Assault Rifle Rocket Launcher [Rating: 15] Favorites ----------- Power Cooled Ion Engine Engine Cooled Ion Engine Propulsion Aluminum Leg Leg Aluminum Leg Wheel Wheel Utility Medium Storage Unit Device Heat Sink Storage Medium Storage Unit Protection Light Armor Plating Weapon Light Assault Rifle Energy Gun Particle Gun Ballistic Gun Light Assault Rifle Launcher Grenade Launcher Build | -11 -10 -9 -9 ------- Run | Yrd Mat Mat Min Slots Evolved 2 | . . 2 . Power . | . . . . Propulsion 1 | . . 1 . Utility 1 | . . 1 . Weapon . | . . . . Parts Attached 36 | 7 5 18 6 Power 5 | 1 1 2 1 Engine 5 | 1 1 2 1 Core . | . . . . Reactor . | . . . . Propulsion 10 | 2 . 6 2 Treads . | . . . . Leg 8 | 2 . 6 . Wheel 2 | . . . 2 Hover . | . . . . Flight . | . . . . Utility 5 | 1 2 2 . Device 1 | . 1 . . Storage 3 | 1 1 1 . Processor . | . . . . Hackware . | . . . . Protection 1 | . . 1 . Artifact . | . . . . Weapon 16 | 3 2 8 3 Energy Gun 5 | 1 . 3 1 Energy Cannon . | . . . . Ballistic Gun 7 | 2 1 3 1 Ballistic Cannon . | . . . . Launcher 4 | . 1 2 1 Special Weapon . | . . . . Impact Weapon . | . . . . Slashing Weapon . | . . . . Piercing Weapon . | . . . . Special Melee Weapon . | . . . . Unidentified Prototypes 1 | . . 1 . Parts Lost 14 | . . 6 8 Power 3 | . . 2 1 Propulsion 5 | . . 3 2 Utility 2 | . . . 2 Weapon 4 | . . 1 3 Highest Loss Streak 8 | . . 1 8 To Critical Strikes . | . . . . Average Slot Usage (%) 95 | . 95 96 91 Engine 11 | . 14 10 10 Leg 30 | . 28 31 28 Device 8 | . 9 9 . Storage 19 | . 14 21 20 Protection 2 | . . 1 8 Energy Gun 7 | . 2 8 10 Ballistic Gun 14 | . 23 12 10 Naked Turns . | . . . . Heaviest Build 29 | 12 19 29 29 Greatest Support 33 | 20 20 33 30 Greatest Overweight (x) 6 | 3 . 1 6 Average Overweight (x) . | . . . . Largest Inventory Capacity 10 | 8 10 10 10 Average Capacity 9 | 7 8 10 10 Most Carried 10 | 4 8 10 10 Average Carried 8 | 3 7 9 9 Final Capacity 10 | 8 10 10 10 Final Carried 10 | 4 8 10 4 Class Distribution -------------------- 100% | Mutant Dominant Class ---------------- Mutant | -10/Materials Mutant | -9/Materials Mutant | -9/Mines Resources | -11 -10 -9 -9 ----------- Run | Yrd Mat Mat Min Matter Collected 675 | 270 58 314 33 Remotely . | . . . . Salvage Created 727 | . 58 503 166 Parts 46 | . 6 38 2 Haulers Intercepted . | . . . . Recyclers Shooed . | . . . . Parts Field Recycled . | . . . . Retrieved Matter . | . . . . Parts Self-Destructed . | . . . . Prevented . | . . . . Kills | -11 -10 -9 -9 ------- Run | Yrd Mat Mat Min Combat Hostiles Destroyed 33 | . 4 17 12 Guns 13 | . 2 9 2 AOE 20 | . 2 8 10 Classes Destroyed 4 | . 2 1 1 Swarmer 9 | . 3 6 . Grunt 10 | . 1 7 2 Sentry 4 | . . 4 . Assembled 10 | . . . 10 Best Kill Streak 10 | . 3 6 10 Combat Bots Only 10 | . 3 6 10 Max Kills in Single Turn 9 | . 2 2 9 Gunslinging 1 | . . 1 . Exploded 9 | . 2 2 9 Melee . | . . . . Uniques/NPCs Destroyed . | . . . . Combat | -11 -10 -9 -9 -------- Run | Yrd Mat Mat Min Hostile Shots Fired 210 | . 22 119 69 Missed 65 | . 3 45 17 Damage Taken 2089 | . 184 943 962 Core 450 | . 41 130 279 Absorbed by Shields . | . . . . Core Remaining (%) 91 | 100 83 . . Volleys Fired 67 | . 14 38 15 Largest 2 | . 2 2 2 Hottest 88 | . 40 88 88 Shots Fired 127 | . 25 74 28 Gun 120 | . 24 70 26 Cannon . | . . . . Launcher 7 | . 1 4 2 Special . | . . . . Kinetic 89 | . 24 52 13 Thermal 31 | . . 18 13 Explosive 7 | . 1 4 2 Electromagnetic . | . . . . Robot Hit Streak 21 | . 9 21 12 Robot Miss Streak 3 | . 2 3 3 Penetration Max . | . . . . Secondary Targets 2 | . . 2 . Max Gunslinging Chain 1 | . . 1 . Shots Hit Robots 91 | . 16 55 20 Core Hits 63 | . 7 31 25 Critical Kills . | . . . . Critical Parts Destroyed 1 | . 1 . . Critical Strikes 1 | . 1 . . Destroy 1 | . 1 . . Melee Attacks . | . . . . Impact . | . . . . Slashing . | . . . . Piercing . | . . . . Sneak Attacks . | . . . . Combat Hostiles . | . . . . Follow-up Attacks . | . . . . Damage Inflicted 2090 | 2 325 915 848 Guns 983 | . 169 535 279 Cannons . | . . . . Explosions 1095 | . 156 376 563 Melee . | . . . . Ramming 12 | 2 . 4 6 Kinetic 673 | . 169 367 137 Thermal 310 | . . 168 142 Explosive 1095 | . 156 376 563 Electromagnetic . | . . . . Impact . | . . . . Slashing . | . . . . Piercing . | . . . . Highest Corruption 2 | . . 2 2 Average Corruption 2 | . . 2 2 Corruption Purged . | . . . . Corruption Blocked . | . . . . Effects 1 | . . . 1 Data Loss (minor) 1 | . . . 1 Overload Shots . | . . . . Overflow Damage 68 | . . 56 12 Projectiles . | . . . . Explosions 68 | . . 56 12 Melee . | . . . . Knockbacks . | . . . . Impact . | . . . . Kinetic . | . . . . Secondary . | . . . . Self-Inflicted Damage 208 | . . 129 79 Shots 5 | . . 3 2 Rammed . | . . . . Targets Rammed 4 | 1 . 1 2 Kicked 4 | 1 . 1 2 Crushed . | . . . . Highest Temperature 410 | . . 14 410 Average Temperature 179 | . . 4 203 Received Heat Transfer 555 | . 66 282 207 Effects 2 | . . . 2 Damage (minor) 1 | . . . 1 Damage (major) 1 | . . . 1 Siege Activations . | . . . . Robots Corrupted . | . . . . Combat Hostiles . | . . . . Parts Fried . | . . . . Impact Corruptions . | . . . . Robots Melted . | . . . . Combat Hostiles . | . . . . Parts Melted 1 | . . 1 . Heat Transferred 718 | . . 385 333 Parts Sabotaged . | . . . . Parts Stolen . | . . . . Parts Stripped . | . . . . Power Chain Reactions . | . . . . Alert | -11 -10 -9 -9 ------- Run | Yrd Mat Mat Min Peak Influence 505 | . 139 505 213 Initial 163 | . . 58 163 Average 224 | . 82 299 189 Maximum Alert Level 2 | . . 2 1 Low Security (%) 54 | 100 100 37 47 Level 1 25 | . . 30 52 Level 2 19 | . . 32 . Level 3 . | . . . . Level 4 . | . . . . Level 5 . | . . . . High Security . | . . . . Max Security . | . . . . Squads Dispatched 7 | . 2 5 . Investigation 4 | . 1 3 . Extermination . | . . . . Reinforcement 3 | . 1 2 . Assault . | . . . . Garrison . | . . . . Intercept . | . . . . Searches Triggered . | . . . . Construction Impeded . | . . . . Haulers Reinforced . | . . . . Active Scanning Responses . | . . . . Cargo Convoy Interrupts . | . . . . Stealth | -11 -10 -9 -9 --------- Run | Yrd Mat Mat Min Distress Signals 3 | . 1 2 . Communications Jammed . | . . . . Distress Signals . | . . . . Times Spotted 52 | . 8 24 20 Peak Tracking Total 18 | . 4 6 18 Tactical Retreats 4 | . 2 1 1 Traps | -11 -10 -9 -9 ------- Run | Yrd Mat Mat Min Traps Triggered 2 | . 1 1 . Indirectly . | . . . . Trap Hack Attempts . | . . . . Triggered . | . . . . Disarmed . | . . . . Reprogrammed . | . . . . Reused . | . . . . Traps Extracted . | . . . . Installed . | . . . . Triggered . | . . . . Machines | -11 -10 -9 -9 ---------- Run | Yrd Mat Mat Min Machines Disabled 3 | . . 3 . Max in Single Turn 2 | . . 2 . Machines Repaired . | . . . . Machines Dismantled . | . . . . Machines Sabotaged . | . . . . Overloaded Fab Kills . | . . . . Hacking | -11 -10 -9 -9 --------- Run | Yrd Mat Mat Min Machines Accessed 7 | . . 7 . Terminals 4 | . . 4 . Fabricators . | . . . . Repair Stations 1 | . . 1 . Recycling Units 1 | . . 1 . Scanalyzers 1 | . . 1 . Garrison Access . | . . . . Total Hacks 22 | . . 22 . Successful 13 | . . 13 . Failed 9 | . . 9 . Catastrophic 1 | . . 1 . Database Lockouts . | . . . . Manual 4 | . . 4 . Terminals 14 | . . 14 . Fabricators . | . . . . Repair Stations 1 | . . 1 . Recycling Units 2 | . . 2 . Scanalyzers 5 | . . 5 . Garrison Access . | . . . . Terminal Hacks 7 | . . 7 . Prototype ID Bank 1 | . . 1 . Alert Level 1 | . . 1 . Dispatch Records 1 | . . 1 . Hauler Manifests 1 | . . 1 . Zone Layout 3 | . . 3 . Fabricator Hacks . | . . . . Repair Station Hacks . | . . . . Recycling Unit Hacks 2 | . . 2 . Retrieve Matter 1 | . . 1 . Retrieve Components 1 | . . 1 . Scanalyzer 4 | . . 4 . Insert Component 2 | . . 2 . Analyze 2 | . . 2 . Garrison Access Hacks . | . . . . Unauthorized Hacks . | . . . . Terminals . | . . . . Fabricators . | . . . . Repair Stations . | . . . . Recycling Units . | . . . . Scanalyzers . | . . . . Garrison Access . | . . . . Data Cores Recovered . | . . . . Used . | . . . . Hacking Detections 6 | . . 6 . Full Trace Events 4 | . . 4 . Feedback Events . | . . . . Feedback Blocked . | . . . . Robot Schematics Acquired . | . . . . Robots Built . | . . . . Authchips . | . . . . Time . | . . . . Total Robot Build Rating . | . . . . Part Schematics Acquired 2 | . . 2 . Parts Built . | . . . . Authchips . | . . . . Time . | . . . . Total Part Build Rating . | . . . . Parts Repaired . | . . . . Time . | . . . . Parts Recycled . | . . . . Recycled Matter . | . . . . Retrieved Matter . | . . . . Retrieved Components 10 | . . 10 . Parts Scanalyzed 2 | . . 2 . Part Schematics Acquired 2 | . . 2 . Parts Damaged . | . . . . Bothacking | -11 -10 -9 -9 ------------ Run | Yrd Mat Mat Min Used RIF Installer . | . . . . Robots Hacked . | . . . . Non-combat . | . . . . Combat . | . . . . Robot Hacks Applied . | . . . . Relay Couplers Released . | . . . . Fabnet Peak Effective % . | . . . . Robots Rewired . | . . . . Allies Hacked . | . . . . Hacks Repelled . | . . . . Allies | -11 -10 -9 -9 -------- Run | Yrd Mat Mat Min Total Allies . | . . . . Largest Group . | . . . . Highest-Rated Group . | . . . . Highest-Rated Ally . | . . . . Total Orders . | . . . . Ally Attacks . | . . . . Total Damage . | . . . . Kills . | . . . . Allies Corrupted . | . . . . Allies Melted . | . . . . Intel | -11 -10 -9 -9 ------- Run | Yrd Mat Mat Min Robot Analysis Total . | . . . . Derelict Logs Recovered . | . . . . Drone Launches . | . . . . Drone Recoveries . | . . . . Exploration | -11 -10 -9 -9 ------------- Run | Yrd Mat Mat Min Turns Passed 1043 | 63 203 630 147 Spaces Moved 648 | 43 127 401 77 Core 11 | 10 . . 1 Treads . | . . . . Legs 637 | 33 127 401 76 Wheels . | . . . . Hover . | . . . . Flight . | . . . . Fastest Speed 50 | 50 120 120 120 Average Speed 121 | 115 120 121 123 Slowest Speed 350 | 200 120 190 350 Overloaded Moves . | . . . . Propulsion Burnouts . | . . . . Robots Hopped . | . . . . Cave-ins Triggered . | . . . . Exploration Rate (%) 23 | 4 30 41 17 Regions Visited 3 Branch Regions 1 Pre-discovered Areas . | . . . . Known Exits Taken . | . . . . Unknown Exits Taken 3 | 1 1 1 . Scrap Searched . | . . . . Spaces Dug . | . . . . Terrain Destroyed 88 | . 8 63 17 Melee . | . . . . Projectile . | . . . . AOE 88 | . 8 63 17 Terrain Rammed . | . . . . Walls Destroyed . | . . . . Machines Disabled . | . . . . Actions | -11 -10 -9 -9 --------- Run | Yrd Mat Mat Min Total 784 | 53 155 476 100 Wait 1 | . 1 . . Move 645 | 42 126 400 77 Hop . | . . . . Pick Up 17 | 3 6 8 . Fast Attach 17 | 6 1 10 . Attach 9 | . . 3 6 Detach 2 | . . 2 . Swap 10 | 1 4 5 . Drop 12 | . 3 9 . Fire 67 | . 14 38 15 Melee . | . . . . Ram . | . . . . Kick 4 | 1 . 1 2 Crush . | . . . . Escape Stasis . | . . . . Rewire . | . . . . Trap . | . . . . Miscellaneous . | . . . . Route ------- -11/Scrapyard -10/Materials (discovered 2 exits: *Mat / [*Min]) -9/Materials -9/Mines (discovered 1 exit: [*Mat]) History --------- Turn | Location | Event 14 | -11/Scrapyard | Discovered new exit (range 15) 64 | -11/Scrapyard | Entered Materials 111 | -10/Materials | Discovered new exit (range 13) 200 | -10/Materials | Discovered new exit (range 8) 267 | -10/Materials | Entered another Materials area 267 | -9/Materials | Evolved 2 slots: Propulsion x1, Utility x1 324 | -9/Materials | Build established: Mutant 891 | -9/Materials | Discovered new exit (range 6) 897 | -9/Materials | Entered Mines 957 | -9/Mines | Discovered new exit (range 9) 1007 | -9/Mines | Assembled infested the area 1012 | -9/Mines | Assisted by a Guerilla fighting off Assembled 1029 | -9/Mines | Core integrity fell below 50% 1038 | -9/Mines | Core integrity fell below 20% 1044 | -9/Mines | Destroyed by as-35486 with Assembled Rifle Last Messages --------------- Med. Battery destroyed. Cld. Ion Engine destroyed. Particle Gun destroyed. as-34933 destroyed. as-45123 destroyed. as-86572 destroyed. as-41590 destroyed. as-13328 destroyed. as-81816 destroyed. [Achievement: Quick And Dirty] as-39802 destroyed. as-49745 destroyed. as-98303 destroyed. as-24966 destroyed. as-89509 destroyed. Rocket Launcher destroyed. Destroyed Rocket Launcher. Destroyed Asb. Hover Unit. HV Slug penetrates Earth. The unstable cave ceiling collapses. Map ----- +----------------------------------------------------+ | ??????????????????????????????????? | | ??????????????????????????????????? | | ??????????????????????????????????? | | ??????????????????????????????????? | | ??????????????????????????????????? | | ??????????????????????????????????? | | ??????????????????????????????????? | | ??????????????????????????????????? | | ??????????????????????????????????? | | ??????????????????????????????????? | | ??????????????????????????????????? | | ??????????????????????????????????? | | ????u?????????????????????????????? | | ???# ###??????????????????????????? | | ???? #????????#????????????????? | | ????? ##?????!#????????????????? | | ?????# ##???%#????????????????? | | ?????# #???!#????????????????? | | ?????# ##??|##???????????????? | | ??????# ### #####???????????? | | ???????# % a ##??????????? | | ??????## a ???????????? | | ??????# ??????????????? | | ???????# #????????????????? | | ???????# % a ##????????????????? | | ???????# @= ##????????????????? | | ??????# #????????????????? | | ??????## ## ###????????????????? | | ???????####### ##???????????????? | | ???????????# #???????????????? | | ???????????# #???????????????? | | ??????????# #??????????????? | | ??????????## ##??????????????? | | ??????????# #???????????????? | | ??????????# ##???????????????? | | ??????????#### ###????????????????? | | ?????????????#=#??????????????????? | | ?????????????#!#???????????####???? | | ?????????????#%#??????????## ##??? | | ????????????##%#?????????## ##?? | | ????????????# %#?????????# #?? | | ????###?????# "#?????????# #?? | | ???## ##???# #??????????## ##?? | | ???# #???# #???????????## ##??? | | ???# ##?## ####?????????# ##???? | | ????# ### % #?????????# #????? | | ????## #??????#### ## #?? | | ?????## < ##??##### #?? | | ??????## ##### #######?? | | ???????#### #???????? | +----------------------------------------------------+ Best States ------------- Heat Dissipation 38 Energy Generation 14 Energy Capacity 430 Matter Stores 300 Matter Capacity 300 Sight Range 16 Terrain Scan Density 10 Armor Coverage 150 Evasion (%) 55 Item Schematics ----------------- Grenade Launcher | -9/Materials | Scanalyzed Aluminum Leg | -9/Materials | Scanalyzed Robot Schematics ------------------ None Fabricated ------------ Nothing Alien Tech Used ----------------- None Achievements -------------- Quick And Dirty Challenges ------------ None Game ------ Seed ActuatorMicrowarpPendant Manual? 0 Play Time 00:17:10 Cumulative 8.7 hours Start 2024.05.07 @ 01:10:24 End 2024.05.07 @ 01:26:14 Sessions 1 Manual Loads 0 Difficulty Rogue Special Mode None Game No. 20 Rogue 20 Adventurer 0 Explorer 0 Win Type - Total 0 Types 0/0/0/0/0/0/0/0/0 Lore% 13 Gallery% 13 Achievement% 12 Wizard Run 0 Options --------- Layout 1 ASCII 0 Keyboard 1 Movement Numpad Keybinds 0 Fullscreen 1 Font 24/Smallcaps Map View 50x35 Zoom Use 4% Tactical HUD 0 Map Filters NONE Filters NONE Steam 1 RUN: e50aea37-2ec1-4a54-b2bc-bb8c1f95877c